Cogmind - Beta 11 @@@ ROGUE MODE // 2022.04.06 @ 14:06:48 Player: derk Result: Destroyed by EX-DEC with AWS/EX-DEC Performance ------------- Evolutions (1) 500 Regions Visited (5) 1000 Robots Destroyed (75) 375 Value Destroyed (1422) 1422 Prototype IDs (27) 540 Alien Tech Used (0) 0 Bonus (518) 518 TOTAL SCORE: 4355 Bonus ------- High Alert Combat Kills 226 Follower Combat Kills 111 Aligned with FarCom 300 Friendly Fire -119 Cogmind --------- Core Integrity 0/400 Matter 266/300 Energy 156/170 System Corruption 3% Temperature Cool (89) Movement Hovering (131) Ox1 Location -9/Exiles Parts ------- > --- POWER (1) -------- Makeshift Power Source > --- PROPULSION (3) --- Airjet Combat Airjet > --- UTILITY (3) ------ Heat Sink Medium Storage Unit > --- WEAPON (2) ------- Heavy Particle Gun Heavy Particle Gun > --- INVENTORY (10) --- Makeshift Power Source Superbattery (1500) Cloak of Protection Hacking Suite Trap Extractor (0/4) Heavy Particle Gun Makeshift Laser Rocket Launcher Mini Grenade Launcher Peak State ------------ > --- POWER ------------ Makeshift Power Source > --- PROPULSION ------- Airjet Airjet Combat Airjet > --- UTILITY ---------- Heat Sink Medium Storage Unit Light Armor Plating > --- WEAPON ----------- Heavy Particle Gun Heavy Particle Gun > --- INVENTORY -------- Makeshift Power Source Heat Sink Superbattery Cloak of Protection Hacking Suite Trap Extractor Heavy Particle Gun Makeshift Laser Rocket Launcher Mini Grenade Launcher [Rating: 30] Favorites ----------- Power Ion Engine Engine Ion Engine Propulsion Airjet Treads Light Treads Leg Aluminum Leg Hover Unit Airjet Utility Medium Storage Unit Device Heat Sink Storage Medium Storage Unit Processor Transport Network Coupler Protection Light Armor Plating Weapon Heavy Particle Gun Energy Gun Heavy Particle Gun Energy Cannon Light EM Pulse Cannon Ballistic Gun Light Assault Rifle Launcher Mini Grenade Launcher Build | -11 -10 -10 -9 -9 -9 ------- Run | Scr Mat Min Mat Min Exi Slots Evolved 2 | . . . 2 . . Power . | . . . . . . Propulsion 1 | . . . 1 . . Utility 1 | . . . 1 . . Weapon . | . . . . . . Parts Attached 84 | 7 17 3 41 3 13 Power 9 | 1 1 . 3 1 3 Engine 9 | 1 1 . 3 1 3 Core . | . . . . . . Reactor . | . . . . . . Propulsion 17 | 2 4 . 9 . 2 Treads 3 | . 2 . 1 . . Leg 4 | 2 2 . . . . Wheel . | . . . . . . Hover 10 | . . . 8 . 2 Flight . | . . . . . . Utility 24 | 2 7 . 11 . 4 Device 7 | 1 1 . 4 . 1 Storage 4 | 1 1 . 1 . 1 Processor 1 | . 1 . . . . Hackware . | . . . . . . Protection 12 | . 4 . 6 . 2 Artifact . | . . . . . . Weapon 34 | 2 5 3 18 2 4 Energy Gun 21 | 1 3 1 13 1 2 Energy Cannon 2 | . . . 2 . . Ballistic Gun 3 | 1 1 1 . . . Ballistic Cannon . | . . . . . . Launcher 8 | . 1 1 3 1 2 Special Weapon . | . . . . . . Impact Weapon . | . . . . . . Slashing Weapon . | . . . . . . Piercing Weapon . | . . . . . . Special Melee Weapon . | . . . . . . Unidentified Prototypes 4 | . . . 4 . . Parts Lost 18 | . 5 . 6 . 7 Power 3 | . 1 . 1 . 1 Propulsion 3 | . . . 1 . 2 Utility 9 | . 2 . 3 . 4 Weapon 3 | . 2 . 1 . . Highest Loss Streak 4 | . 2 . 4 . 3 To Critical Strikes . | . . . . . . Average Slot Usage (%) 97 | . 99 100 95 100 97 Engine 11 | . 13 14 9 11 9 Treads 3 | . 3 28 2 . . Leg 7 | . 24 . . . . Hover 19 | . . . 30 33 32 Device 7 | . 6 . 7 11 11 Storage 12 | . 14 14 11 11 11 Protection 10 | . 5 14 13 11 10 Energy Gun 16 | . 14 7 18 18 19 Ballistic Gun 5 | . 14 10 2 . . Launcher 1 | . . 9 . 3 2 Naked Turns . | . . . . . . Heaviest Build 28 | 13 24 24 26 25 28 Greatest Support 60 | 20 40 40 60 28 28 Greatest Overweight (x) 1 | 1 1 . 1 . 1 Average Overweight (x) . | . . . . . . Largest Inventory Capacity 10 | 8 10 10 10 10 10 Average Capacity 9 | 7 9 10 10 10 10 Most Carried 10 | 6 10 10 10 10 10 Average Carried 8 | 4 8 9 9 9 7 Final Capacity 10 | 8 10 10 10 10 10 Final Carried 10 | 6 10 10 10 10 9 Class Distribution -------------------- 71% | Mutant 28% | Scavenger-Mutant Dominant Class ---------------- Mutant | -10/Materials Mutant | -10/Mines Mutant | -9/Materials Scavenger-Mutant | -9/Mines Mutant | -9/Exiles Resources | -11 -10 -10 -9 -9 -9 ----------- Run | Scr Mat Min Mat Min Exi Matter Collected 1356 | 281 212 54 495 40 274 Remotely . | . . . . . . Salvage Created 2538 | 188 564 48 1269 241 228 Parts 177 | 10 29 6 75 15 42 Haulers Intercepted 5 | . 2 . 3 . . Recyclers Shooed 4 | 1 2 . 1 . . Parts Field Recycled . | . . . . . . Retrieved Matter . | . . . . . . Parts Self-Destructed . | . . . . . . Prevented . | . . . . . . Kills | -11 -10 -10 -9 -9 -9 ------- Run | Scr Mat Min Mat Min Exi Combat Hostiles Destroyed 43 | . 11 4 22 5 1 Guns 29 | . 11 2 13 2 1 AOE 14 | . . 2 9 3 . Classes Destroyed 14 | 3 4 1 4 . 2 Worker 4 | 2 . . 2 . . Builder 2 | . . . 2 . . Tunneler 2 | 2 . . . . . Hauler 5 | . 2 . 3 . . Recycler 7 | 1 1 . 3 2 . Operator 3 | . . . 3 . . Turret 1 | . . . . . 1 Watcher 3 | . 1 . 2 . . Swarmer 17 | . 3 3 8 3 . Grunt 19 | . 8 . 9 2 . Duelist 1 | . . . 1 . . Sentry 5 | . . . 5 . . Zionite 4 | . . . . . 4 Assembled 1 | . . 1 . . . Best Kill Streak 5 | 4 3 3 4 5 3 Combat Bots Only 3 | . 3 3 3 3 1 Max Kills in Single Turn 3 | 1 1 2 2 3 3 Gunslinging . | . . . . . . Exploded 3 | . . 2 2 3 . Melee . | . . . . . . Uniques/NPCs Destroyed 3 | . . . . . 3 8R-AWN (-9/Exiles) EX-BIN (-9/Exiles) EX-HEX (-9/Exiles) Combat | -11 -10 -10 -9 -9 -9 -------- Run | Scr Mat Min Mat Min Exi Damage Taken 2764 | . 672 135 996 115 846 Core 611 | . 171 29 126 . 285 Absorbed by Shields . | . . . . . . Regen/Repaired (Parts) 179 | . . . 179 . . Core Remaining (%) 60 | 100 . 20 . . . Volleys Fired 250 | 11 72 7 97 11 52 Largest 2 | 2 2 1 2 2 2 Hottest 110 | 60 85 65 110 110 110 Shots Fired 440 | 22 143 7 171 15 82 Gun 408 | 22 143 6 160 14 63 Cannon 3 | . . . 3 . . Launcher 29 | . . 1 8 1 19 Special . | . . . . . . Kinetic 112 | 11 72 4 25 . . Thermal 279 | 11 54 2 135 14 63 Explosive 29 | . . 1 8 1 19 Electromagnetic 20 | . 17 . 3 . . Robot Hit Streak 15 | 6 7 1 15 7 6 Robot Miss Streak 6 | 1 6 2 4 3 5 Penetration Max . | . . . . . . Secondary Targets 2 | . 1 . . . 1 Max Gunslinging Chain 1 | . 1 . . . 1 Shots Hit Robots 225 | 14 76 2 92 10 31 Core Hits 112 | 8 27 4 45 8 20 Critical Kills . | . . . . . . Critical Parts Destroyed . | . . . . . . Critical Strikes 5 | . 2 . 2 . 1 Burn 5 | . 2 . 2 . 1 Melee Attacks . | . . . . . . Impact . | . . . . . . Slashing . | . . . . . . Piercing . | . . . . . . Sneak Attacks . | . . . . . . Combat Hostiles . | . . . . . . Follow-up Attacks . | . . . . . . Damage Inflicted 4672 | 146 827 138 2367 377 817 Guns 2921 | 146 827 24 1412 173 339 Cannons 55 | . . . 55 . . Explosions 1696 | . . 114 900 204 478 Melee . | . . . . . . Ramming . | . . . . . . Kinetic 508 | 34 317 6 151 . . Thermal 2532 | 112 465 18 1369 229 339 Explosive 1532 | . . 114 792 148 478 Electromagnetic 100 | . 45 . 55 . . Impact . | . . . . . . Slashing . | . . . . . . Piercing . | . . . . . . Highest Corruption 3 | . . . . . 3 Average Corruption 2 | . . . . . 2 Corruption Purged . | . . . . . . Corruption Blocked . | . . . . . . Overload Shots . | . . . . . . Overflow Damage 38 | . . . 18 10 10 Projectiles . | . . . . . . Explosions 38 | . . . 18 10 10 Melee . | . . . . . . Knockbacks . | . . . . . . Impact . | . . . . . . Kinetic . | . . . . . . Secondary . | . . . . . . Self-Inflicted Damage 375 | . . 39 234 58 44 Shots 10 | . . 1 5 2 2 Rammed . | . . . . . . Targets Rammed . | . . . . . . Kicked . | . . . . . . Crushed . | . . . . . . Highest Temperature 398 | 40 398 60 394 90 316 Average Temperature 76 | 17 74 22 75 26 111 Received Heat Transfer 600 | . 294 . 255 24 27 Effects 9 | . 1 . 4 . 4 Energy Bleed 2 | . 1 . . . 1 Interference 7 | . . . 4 . 3 Siege Activations . | . . . . . . Robots Corrupted . | . . . . . . Combat Hostiles . | . . . . . . Parts Fried . | . . . . . . Impact Corruptions . | . . . . . . Robots Melted . | . . . . . . Combat Hostiles . | . . . . . . Parts Melted 16 | . 2 . 8 1 5 Heat Transferred 5399 | 250 1238 37 2727 383 764 Parts Sabotaged . | . . . . . . Parts Stolen . | . . . . . . Parts Stripped . | . . . . . . Power Chain Reactions 1 | . . . 1 . . Missiles Intercepted . | . . . . . . Alert | -11 -10 -10 -9 -9 -9 ------- Run | Scr Mat Min Mat Min Exi Peak Influence 954 | 25 265 139 954 566 . Initial 370 | . 16 48 53 370 . Average 330 | 4 126 138 540 521 . Maximum Alert Level 3 | . 1 . 3 2 . Low Security (%) 52 | 100 87 100 18 . . Level 1 10 | . 12 . 12 11 . Level 2 22 | . . . 36 88 . Level 3 13 | . . . 32 . . Level 4 . | . . . . . . Level 5 . | . . . . . . High Security . | . . . . . . Max Security . | . . . . . . Squads Dispatched 6 | . 2 . 4 . . Investigation 2 | . . . 2 . . Extermination . | . . . . . . Reinforcement 4 | . 2 . 2 . . Assault . | . . . . . . Garrison . | . . . . . . Intercept . | . . . . . . Searches Triggered . | . . . . . . Construction Impeded . | . . . . . . Haulers Reinforced . | . . . . . . Active Scanning Responses . | . . . . . . Cargo Convoy Interrupts . | . . . . . . Stealth | -11 -10 -10 -9 -9 -9 --------- Run | Scr Mat Min Mat Min Exi Distress Signals 2 | . 1 . 1 . . Communications Jammed . | . . . . . . Distress Signals . | . . . . . . Times Spotted 114 | . 33 8 44 7 22 Peak Tracking Total 9 | . 5 4 5 4 9 Tactical Retreats 14 | . 6 1 2 . 5 Traps | -11 -10 -10 -9 -9 -9 ------- Run | Scr Mat Min Mat Min Exi Traps Triggered . | . . . . . . Indirectly . | . . . . . . Trap Hack Attempts . | . . . . . . Triggered . | . . . . . . Disarmed . | . . . . . . Reprogrammed . | . . . . . . Reused . | . . . . . . Traps Extracted . | . . . . . . Installed . | . . . . . . Triggered . | . . . . . . Exploded 3 | . . . . . 3 Machines | -11 -10 -10 -9 -9 -9 ---------- Run | Scr Mat Min Mat Min Exi Machines Disabled 15 | . . . 10 1 4 Max in Single Turn 1 | . . . 1 1 1 Machines Sabotaged . | . . . . . . Garrisons Compromised . | . . . . . . Overloaded Fab Kills . | . . . . . . Hacking | -11 -10 -10 -9 -9 -9 --------- Run | Scr Mat Min Mat Min Exi Machines Accessed 17 | . 5 . 10 . 2 Terminals 11 | . 5 . 6 . . Fabricators . | . . . . . . Repair Stations 2 | . . . 2 . . Recycling Units . | . . . . . . Scanalyzers 2 | . . . 2 . . Garrison Access . | . . . . . . Total Hacks 56 | . 13 . 41 . 2 Successful 31 | . 10 . 19 . 2 Failed 25 | . 3 . 22 . . Catastrophic 1 | . . . 1 . . Database Lockouts . | . . . . . . Manual 24 | . 5 . 18 . 1 Terminals 38 | . 13 . 25 . . Fabricators . | . . . . . . Repair Stations 7 | . . . 7 . . Recycling Units . | . . . . . . Scanalyzers 9 | . . . 9 . . Garrison Access . | . . . . . . Terminal Hacks 14 | . 5 . 7 . 2 Record 1 | . . . . . 1 Branch Access Points 1 | . 1 . . . . Locate Traps 6 | . 2 . 4 . . Hauler Manifests 2 | . 1 . 1 . . Zone Layout 3 | . 1 . 2 . . EX-Prototype ID Bank 1 | . . . . . 1 Fabricator Hacks . | . . . . . . Repair Station Hacks 4 | . . . 4 . . Scan Component 2 | . . . 2 . . Repair 2 | . . . 2 . . Recycling Unit Hacks . | . . . . . . Scanalyzer 4 | . . . 4 . . Insert Component 3 | . . . 3 . . Analyze 1 | . . . 1 . . Garrison Access Hacks . | . . . . . . Unauthorized Hacks 9 | . 5 . 4 . . Terminals 9 | . 5 . 4 . . Track 5 | . 3 . 2 . . Assimilate 1 | . . . 1 . . Disrupt 1 | . 1 . . . . Operators 2 | . 1 . 1 . . Fabricators . | . . . . . . Repair Stations . | . . . . . . Recycling Units . | . . . . . . Scanalyzers . | . . . . . . Garrison Access . | . . . . . . Data Cores Recovered 1 | . . . 1 . . Used . | . . . . . . Hacking Detections 15 | . 5 . 10 . . Full Trace Events 5 | . . . 5 . . Feedback Events . | . . . . . . Feedback Blocked . | . . . . . . Robot Schematics Acquired . | . . . . . . Robots Built . | . . . . . . Authchips . | . . . . . . Time . | . . . . . . Total Robot Build Rating . | . . . . . . Part Schematics Acquired 1 | . . . 1 . . Parts Built . | . . . . . . Authchips . | . . . . . . Time . | . . . . . . Total Part Build Rating . | . . . . . . Parts Repaired 2 | . . . 2 . . Time 130 | . . . 130 . . Parts Recycled . | . . . . . . Recycled Matter . | . . . . . . Retrieved Matter . | . . . . . . Retrieved Components . | . . . . . . Parts Scanalyzed 1 | . . . 1 . . Part Schematics Acquired 1 | . . . 1 . . Parts Damaged . | . . . . . . Bothacking | -11 -10 -10 -9 -9 -9 ------------ Run | Scr Mat Min Mat Min Exi Used RIF Installer . | . . . . . . Robots Hacked . | . . . . . . Non-combat . | . . . . . . Combat . | . . . . . . Robot Hacks Applied . | . . . . . . Relay Couplers Released . | . . . . . . Fabnet Peak Effective % . | . . . . . . Robots Rewired . | . . . . . . Allies Hacked . | . . . . . . Hacks Repelled . | . . . . . . Allies | -11 -10 -10 -9 -9 -9 -------- Run | Scr Mat Min Mat Min Exi Total Allies 3 | . . 3 . . . Largest Group 3 | . . 3 3 . . Highest-Rated Group 40 | . . 40 39 . . Highest-Rated Ally 16 | . . 16 16 . . Total Orders . | . . . . . . Ally Attacks 87 | . . 26 35 . 26 Total Damage 1957 | . . 173 384 . 1400 Kills 21 | . . 5 9 . 7 Allies Corrupted . | . . . . . . Allies Melted . | . . . . . . Turrets Deployed 3 | . . . . . 3 Intel | -11 -10 -10 -9 -9 -9 ------- Run | Scr Mat Min Mat Min Exi Robot Analysis Total . | . . . . . . Derelict Logs Recovered 5 | . . 2 . 3 . Drone Launches . | . . . . . . Drone Recoveries . | . . . . . . Exploration | -11 -10 -10 -9 -9 -9 ------------- Run | Scr Mat Min Mat Min Exi Turns Passed 4401 | 131 1303 265 1450 286 966 Spaces Moved 3436 | 69 717 143 1002 418 1087 Core 2 | 2 . . . . . Treads 289 | . 81 143 65 . . Legs 703 | 67 636 . . . . Wheels . | . . . . . . Hover 2442 | . . . 937 418 1087 Flight . | . . . . . . Fastest Speed 50 | 50 120 160 52 58 58 Average Speed 82 | 123 141 160 64 58 58 Slowest Speed 240 | 190 190 160 240 58 131 Overloaded Moves . | . . . . . . Propulsion Burnouts . | . . . . . . Robots Hopped 1 | . . . . . 1 Cave-ins Triggered . | . . . . . . Exploration Rate (%) 60 | 6 91 39 82 63 79 Regions Visited 5 Branch Regions 3 Pre-discovered Areas 3 | . . 1 . 1 1 Known Exits Taken 2 | . 1 . 1 . . Unknown Exits Taken 3 | 1 . 1 . 1 . Scrap Searched 2 | . . . . 2 . Spaces Dug 17 | . . 7 10 . . Terrain Destroyed 121 | . . 7 64 12 38 Melee . | . . . . . . Projectile . | . . . . . . AOE 121 | . . 7 64 12 38 Terrain Rammed . | . . . . . . Walls Destroyed . | . . . . . . Machines Disabled . | . . . . . . Actions | -11 -10 -10 -9 -9 -9 --------- Run | Scr Mat Min Mat Min Exi Total 4583 | 92 879 173 1649 446 1344 Wait 682 | . 45 17 457 10 153 Move 3429 | 68 716 142 1001 417 1085 Hop 1 | . . . . . 1 Pick Up 67 | 6 15 2 22 2 20 Fast Attach 23 | 7 2 . 11 . 3 Attach 22 | . 7 . 12 . 3 Detach 4 | . 1 . 3 . . Swap 39 | . 8 3 18 3 7 Drop 66 | . 13 2 28 3 20 Fire 250 | 11 72 7 97 11 52 Melee . | . . . . . . Ram . | . . . . . . Kick . | . . . . . . Crush . | . . . . . . Escape Stasis . | . . . . . . Rewire . | . . . . . . Trap . | . . . . . . Miscellaneous . | . . . . . . Route ------- -11/Scrapyard -10/Materials (discovered 5 exits: *Mat x3 / *Min x2) -10/Mines -9/Materials (discovered 4 exits: [*Mat x3] / *Min) -9/Mines (discovered 3 exits: [*Mat x2] / *Exi) -9/Exiles (discovered 2 exits: [*Min x2]) History --------- Turn | Location | Event 10 | -11/Scrapyard | Discovered new exit (range 16) 132 | -11/Scrapyard | Entered Materials 181 | -10/Materials | Identified exit to Mines 316 | -10/Materials | Build established: Mutant 333 | -10/Materials | Discovered new exit (range 14) 419 | -10/Materials | Discovered new exit (range 17) 727 | -10/Materials | Core integrity fell below 50% 868 | -10/Materials | Discovered new exit (range 16) 1435 | -10/Materials | Entered Mines 1575 | -10/Mines | Assembled infested the area 1577 | -10/Mines | Learned 2 Materials zone layouts 1580 | -10/Mines | Assisted by a Guerilla fighting off Assembled 1590 | -10/Mines | Discovered new exit (range 6) 1636 | -10/Mines | Assisted by bots powering up and referring to "LRC-V3" 1700 | -10/Mines | Entered Materials 1700 | -9/Materials | Accompanied by 3 allies 1700 | -9/Materials | Evolved 2 slots: Propulsion x1, Utility x1 1701 | -9/Materials | Identified exit to Mines 1893 | -9/Materials | Discovered new exit (range 4) 2259 | -9/Materials | Discovered new exit (range 13) 2350 | -9/Materials | Repaired Broken Cmb. Airjet 2487 | -9/Materials | Discovered new exit (range 16) 2702 | -9/Materials | Lost 4 parts (1n2u1w) 2996 | -9/Materials | Repaired Hvy. Particle Gun 3150 | -9/Materials | Entered Mines 3155 | -9/Mines | Build established: Scavenger-Mutant 3157 | -9/Mines | Received a Rocket Launcher from a helpful Derelict 3167 | -9/Mines | Learned location of Zion (-6) 3182 | -9/Mines | Discovered new exit (range 5) 3263 | -9/Mines | Discovered new exit (range 5) 3359 | -9/Mines | Learned Materials stockpile data 3423 | -9/Mines | Deemed a non-threat by the Exiles lab entrance 3423 | -9/Mines | Discovered new exit (range 5) 3436 | -9/Mines | Entered Exiles 3445 | -9/Exiles | Discovered new exit (range 15) 3462 | -9/Exiles | Met 8R-AWN 3471 | -9/Exiles | Met EX-HEX 3505 | -9/Exiles | Met EX-DEC 3579 | -9/Exiles | Met EX-BIN 3587 | -9/Exiles | Aligned with FarCom system 3587 | -9/Exiles | Given EX-Vault access code 3601 | -9/Exiles | Opened EX-Vault 3614 | -9/Exiles | Warned to stay clear of 0b10 Research branches 3631 | -9/Exiles | Found Superbattery 3633 | -9/Exiles | Found Cloak of Protection 3704 | -9/Exiles | Found Deploy-a-Sentry 3706 | -9/Exiles | Found Deploy-a-Sentry 3707 | -9/Exiles | Found Deploy-a-Sentry 3872 | -9/Exiles | Discovered new exit (range 10) 3890 | -9/Exiles | Attacked by the Exiles 3893 | -9/Exiles | DAS Turret deployed 3912 | -9/Exiles | DAS Turret deployed 3924 | -9/Exiles | DAS Turret deployed 3944 | -9/Exiles | Build established: Mutant 4052 | -9/Exiles | Destroyed 8R-AWN 4084 | -9/Exiles | Core integrity fell below 50% 4373 | -9/Exiles | Destroyed EX-BIN 4385 | -9/Exiles | Destroyed EX-HEX 4394 | -9/Exiles | Core integrity fell below 20% 4402 | -9/Exiles | Destroyed by EX-DEC with AWS/EX-DEC Last Messages --------------- 04367_ Destroyed Mak. Hover Unit. 04373_ Machine disabled. 04373_ EX Chip 2 melted. 04373_ EX Chip 1 melted. 04373_ EX Chip 2 melted. 04373_ EX Chip 1 melted. 04373_ EX-BIN: "You can't kill me, my evil twin will get revenge!" 04373_ EX-BIN destroyed. 04377_ Overheating: System interference. 04377_ Hvy. Particle Gun temporarily disabled. 04385_ EX-HEX destroyed. 04395_ Testing Chamber Shield damaged. 04396_ Testing Apparatus damaged. 04397_ The unstable cave ceiling collapses. 04397_ Heat Sink destroyed. 04399_ Airjet destroyed. 04399_ Lgt. Armor Plating destroyed. 04400_ Mak. Power Source melted. 04400_ GM-J5T destroyed. 04400_ Switching to secondary target: EX-DEC. Map ----- +----------------------------------------------------+ | ????????????##"" =!!!! | | ?????????????#" | | ?????????????## | | ??????????????#" " "" | | ??????????????#"""" ""## ##""" " " | | ??????????????#"" ""#### ######""" | | ??????????????#" """"##??# #????###"" | | ??????????????#""" """#??## ####???### | | ??????????????## ""##??#! "!#?????? | | ???????????????#"" """##???#" !#?????? | | ???????????????##""" ##????#" "#?????? | | ????????????????##"""" ##?????#!!""!"#?????? | | ?????????????????### #??????########?????? | | ???????????????????##### ##???????????????????? | | ???????????????????????##z #????????????????????? | | ????????????????????????# #????????????????????? | | ????????????????????????# #????????????????????? | | ????????????????????????# ##???????????????????? | | ????????????????????????# #???????????????????? | | ??????????????????????### #???????????????????? | | ??????????????????????# #* #???????????????????? | | ?????????????????????###! #???????????????????? | | ??????????????"" "??# [*= #???????????????????? | | ??????????????"" ""# = #???????????????????? | | ???????????????#"" #####???????????????? | | ?????????????""" c @ """"""???????????????? | | ?????????????"" * "#?????????????? | | ??????????? % % " ???????????? | | ??????????? = ! " ???????????? | | ??????????? = " ???????????? | | ???????????? " #""???????????? | | ????????????"" " """" """""#?????????????? | | ?????????????###"""########"""######?????????????? | | ???????????????" ????????" "??????????????????? | | ??????????????????????????" """?????????????????? | | ??????????????????????????"""""??????????????????? | | ??????????????????????????? ""???????????????????? | | ?????????????????????????????????????????????????? | | ?????????????????????????????????????????????????? | | ?????????????????????????????????????????????????? | | ?????????????????????????????????????????????????? | | ?????????????????????????????????????????????????? | | ?????????????????????????????????????????????????? | | | | | | | | | | | | | | | +----------------------------------------------------+ Best States ------------- Heat Dissipation 50 Energy Generation 15 Energy Capacity 265 Matter Stores 300 Matter Capacity 300 Sight Range 16 Terrain Scan Density 10 Armor Coverage 300 Evasion (%) 55 Recoil Reduction 3 Item Schematics ----------------- Cmb. Airjet | -9/Materials | Scanalyzed Robot Schematics ------------------ None Fabricated ------------ Nothing Alien Tech Used ----------------- None Achievements -------------- None Challenges ------------ None Game ------ Seed BottomlessRemoteStorage Manual? 0 Play Time 01:05:40 Cumulative 331.1 hours Start 2022.03.29 @ 16:50:59 End 2022.04.06 @ 14:06:48 Sessions 3 Manual Loads 0 Difficulty Rogue Special Mode None Game No. 126 Rogue 126 Adventurer 0 Explorer 0 Win Type - Total 12 Types 10/0/1/1/0/0/0/0/0 Lore% 64 Gallery% 81 Achievement% 67 Wizard Run 0 Options --------- ASCII 0 Keyboard 0 Movement Numpad Keybinds 0 Fullscreen 1 Font 18/SmallcapsGlow Map View 76x50 Tactical HUD 1 Map Filters NONE Filters NONE Steam 1 RUN: d38dc4e4-84ef-4a95-9f92-e66b37903af2